Cogmind - Beta 9.1 @@@ ROGUE MODE // 2019.11.09 @ 08:29:44 Player: Carlyle Result: Self-destructed Performance ------------- Evolutions (1) 500 Regions Visited (2) 400 Robots Destroyed (9) 45 Value Destroyed (190) 190 Prototype IDs (0) 0 Alien Tech Used (0) 0 Bonus (0) 0 TOTAL SCORE: 1135 Bonus ------- None Cogmind --------- Core Integrity 277/400 Matter 269/300 Energy 160/160 System Corruption 0% Temperature Cool (0) Location -9/Materials Parts ------- Power (1) Light Nuclear Core Propulsion (3) Aluminum Leg Wheel Utility (3) Heat Sink Heat Sink Large Storage Unit Weapon (2) Inventory (10) Improved Ion Engine Aluminum Leg Hover Unit Large Storage Unit Light Assault Rifle Light Assault Rifle Grenade Launcher Peak State ------------ Power Light Nuclear Core Propulsion Aluminum Leg Wheel Compact Wheel Utility Heat Sink Heat Sink Large Storage Unit Weapon Medium Laser Small Laser Inventory Improved Ion Engine Aluminum Leg Hover Unit Large Storage Unit EM Pulse Gun Particle Gun Light Assault Rifle Light Assault Rifle Grenade Launcher [Rating: 12] Favorites ----------- Power Light Nuclear Core Engine Light Ion Engine Power Core Light Nuclear Core Propulsion Wheel Leg Aluminum Leg Wheel Wheel Utility Large Storage Unit Device Heat Sink Storage Large Storage Unit Weapon Medium Laser Energy Gun Medium Laser Ballistic Gun Light Assault Rifle Launcher Grenade Launcher Build | -11 -10 -9 ------- Run | Scr Mat Mat Slots Evolved 2 | . . 2 Power . | . . . Propulsion 1 | . . 1 Utility 1 | . . 1 Weapon . | . . . Parts Attached 17 | 6 5 6 Power 2 | 1 1 . Engine 1 | 1 . . Core 1 | . 1 . Reactor . | . . . Propulsion 3 | 2 . 1 Treads . | . . . Leg 1 | . . 1 Wheel 2 | 2 . . Hover . | . . . Flight . | . . . Utility 5 | 1 2 2 Device 3 | . 1 2 Storage 2 | 1 1 . Processor . | . . . Hackware . | . . . Protection . | . . . Artifact . | . . . Weapon 7 | 2 2 3 Energy Gun 5 | 1 1 3 Energy Cannon . | . . . Ballistic Gun 1 | 1 . . Ballistic Cannon . | . . . Launcher 1 | . 1 . Special Weapon . | . . . Impact Weapon . | . . . Slashing Weapon . | . . . Piercing Weapon . | . . . Special Melee Weapon . | . . . Unidentified Prototypes . | . . . Parts Lost 6 | . 1 5 Power . | . . . Propulsion 1 | . . 1 Utility . | . . . Weapon 5 | . 1 4 Highest Loss Streak 5 | . 1 5 Average Slot Usage (%) 93 | . 96 88 Engine 3 | . 5 . Core 9 | . 8 11 Leg 1 | . . 4 Wheel 25 | . 28 21 Device 13 | . 10 18 Storage 12 | . 14 11 Energy Gun 15 | . 14 18 Ballistic Gun 7 | . 11 . Launcher 2 | . 2 2 Naked Turns . | . . . Heaviest Build 27 | 10 26 27 Greatest Support 26 | 26 26 26 Greatest Overweight (x) 3 | 3 . 1 Average Overweight (x) . | . . . Largest Inventory Capacity 10 | 6 10 10 Average Capacity 8 | 5 8 10 Most Carried 10 | 6 10 10 Average Carried 7 | 3 7 8 Final Capacity 10 | 6 10 10 Final Carried 10 | 4 10 7 Class Distribution -------------------- 100% | Mutant Dominant Class ---------------- Mutant | -10/Materials Mutant | -9/Materials Resources | -11 -10 -9 ----------- Run | Scr Mat Mat Matter Collected 365 | 200 112 53 Remotely . | . . . Salvage Created 316 | . 263 53 Parts 17 | . 14 3 Haulers Intercepted 1 | . 1 . Recyclers Shooed 1 | . 1 . Parts Field Recycled . | . . . Retrieved Matter . | . . . Parts Self-Destructed . | . . . Prevented . | . . . Kills | -11 -10 -9 ------- Run | Scr Mat Mat Combat Hostiles Destroyed 6 | . 5 1 Guns 6 | . 5 1 Classes Destroyed 6 | . 5 1 Hauler 1 | . 1 . Recycler 1 | . 1 . Operator 1 | . 1 . Swarmer 3 | . 3 . Grunt 2 | . 2 . Sentry 1 | . . 1 Best Kill Streak 3 | . 3 1 Combat Bots Only 3 | . 3 1 Max Kills in Single Turn 1 | . 1 1 Gunslinging . | . . . Exploded . | . . . Melee . | . . . Uniques/NPCs Destroyed . | . . . Combat | -11 -10 -9 -------- Run | Scr Mat Mat Damage Taken 605 | . 203 402 Core 176 | . 53 123 Absorbed by Shields . | . . . Core Remaining (%) 89 | 100 78 . Volleys Fired 31 | . 20 11 Largest 2 | . 2 2 Hottest 105 | . 70 105 Shots Fired 57 | . 36 21 Gun 53 | . 32 21 Cannon . | . . . Launcher 4 | . 4 . Special . | . . . Kinetic 16 | . 16 . Thermal 22 | . 6 16 Explosive 4 | . 4 . Electromagnetic 15 | . 10 5 Robot Hit Streak 20 | . 5 20 Robot Miss Streak 4 | . 4 1 Penetration Max . | . . . Secondary Targets . | . . . Shots Hit Robots 41 | . 21 20 Core Hits 15 | . 12 3 Critical Hits . | . . . Critical Kills . | . . . Critical Parts Destroyed . | . . . Melee Attacks . | . . . Impact . | . . . Slashing . | . . . Piercing . | . . . Sneak Attacks . | . . . Combat Hostiles . | . . . Follow-up Attacks . | . . . Damage Inflicted 579 | . 325 254 Guns 419 | . 165 254 Cannons . | . . . Explosions 160 | . 160 . Melee . | . . . Ramming . | . . . Kinetic 62 | . 62 . Thermal 234 | . 37 197 Explosive 160 | . 160 . Electromagnetic 123 | . 66 57 Impact . | . . . Slashing . | . . . Piercing . | . . . Highest Corruption 2 | . 2 . Average Corruption 2 | . 2 . Corruption Purged . | . . . Effects 2 | . 2 . Message Errors 2 | . 2 . Overload Shots . | . . . Overflow Damage . | . . . Projectiles . | . . . Explosions . | . . . Melee . | . . . Knockbacks . | . . . Impact . | . . . Kinetic . | . . . Secondary . | . . . Self-Inflicted Damage . | . . . Shots . | . . . Rammed . | . . . Targets Rammed . | . . . Kicked . | . . . Crushed . | . . . Highest Temperature 153 | . 153 6 Average Temperature 64 | . 72 3 Received Heat Transfer 141 | . 33 108 Siege Activations . | . . . Robots Corrupted 1 | . 1 . Combat Hostiles . | . . . Parts Fried 2 | . 2 . Impact Corruptions . | . . . Robots Melted . | . . . Combat Hostiles . | . . . Parts Melted 1 | . 1 . Heat Transferred 594 | . 111 483 Parts Sabotaged . | . . . Parts Stolen . | . . . Parts Stripped . | . . . Power Chain Reactions . | . . . Missiles Intercepted . | . . . Alert | -11 -10 -9 ------- Run | Scr Mat Mat Peak Influence 125 | . 125 94 Average Influence 48 | . 52 62 Maximum Alert Level . | . . . Low Security (%) 100 | . . . Level 1 . | . . . Level 2 . | . . . Level 3 . | . . . Level 4 . | . . . Level 5 . | . . . High Security . | . . . Max Security . | . . . Squads Dispatched 1 | . . 1 Investigation . | . . . Extermination . | . . . Reinforcement 1 | . . 1 Assault . | . . . Garrison . | . . . Intercept . | . . . Construction Impeded . | . . . Haulers Reinforced . | . . . Stealth | -11 -10 -9 --------- Run | Scr Mat Mat Distress Signals 1 | . 1 . Communications Jammed . | . . . Distress Signals . | . . . Times Spotted 15 | . 11 4 Peak Tracking Total 6 | . 6 3 Tactical Retreats 1 | . 1 . Traps | -11 -10 -9 ------- Run | Scr Mat Mat Traps Triggered 1 | . 1 . Indirectly . | . . . Trap Hack Attempts . | . . . Triggered . | . . . Disarmed . | . . . Reprogrammed . | . . . Reused . | . . . Traps Extracted . | . . . Installed . | . . . Triggered . | . . . Machines | -11 -10 -9 ---------- Run | Scr Mat Mat Machines Disabled 1 | . 1 . Max in Single Turn 1 | . 1 . Machines Sabotaged . | . . . Garrisons Compromised . | . . . Overloaded Fab Kills . | . . . Fab Network Shutdowns . | . . . Hacking | -11 -10 -9 --------- Run | Scr Mat Mat Machines Accessed 2 | . 2 . Terminals 2 | . 2 . Fabricators . | . . . Repair Stations . | . . . Recycling Units . | . . . Scanalyzers . | . . . Garrison Access . | . . . Total Hacks 8 | . 8 . Successful 2 | . 2 . Failed 6 | . 6 . Catastrophic . | . . . Database Lockouts . | . . . Manual 4 | . 4 . Terminals 8 | . 8 . Fabricators . | . . . Repair Stations . | . . . Recycling Units . | . . . Scanalyzers . | . . . Garrison Access . | . . . Terminal Hacks 2 | . 2 . Unreport Threat 1 | . 1 . Zone Layout 1 | . 1 . Fabricator Hacks . | . . . Repair Station Hacks . | . . . Recycling Unit Hacks . | . . . Scanalyzer . | . . . Garrison Access Hacks . | . . . Unauthorized Hacks 1 | . 1 . Terminals . | . . . Fabricators . | . . . Repair Stations . | . . . Recycling Units . | . . . Scanalyzers . | . . . Garrison Access . | . . . Data Cores Recovered . | . . . Used . | . . . Hacking Detections 2 | . 2 . Full Trace Events . | . . . Feedback Events . | . . . Feedback Blocked . | . . . Robot Schematics Acquired . | . . . Robots Built . | . . . Matter . | . . . Time . | . . . Total Robot Build Rating . | . . . Part Schematics Acquired . | . . . Parts Built . | . . . Matter . | . . . Time . | . . . Total Part Build Rating . | . . . Parts Repaired . | . . . Time . | . . . Parts Recycled . | . . . Recycled Matter . | . . . Retrieved Matter . | . . . Retrieved Components . | . . . Parts Scanalyzed . | . . . Part Schematics Acquired . | . . . Parts Damaged . | . . . Bothacking | -11 -10 -9 ------------ Run | Scr Mat Mat Used RIF Installer . | . . . Robots Hacked . | . . . Non-combat . | . . . Combat . | . . . Robot Hacks Applied . | . . . Relay Couplers Released . | . . . Robots Rewired . | . . . Allies Hacked . | . . . Hacks Repelled . | . . . Allies | -11 -10 -9 -------- Run | Scr Mat Mat Total Allies . | . . . Largest Group . | . . . Highest-Rated Group . | . . . Highest-Rated Ally . | . . . Total Orders . | . . . Ally Attacks . | . . . Total Damage . | . . . Kills . | . . . Allies Corrupted . | . . . Allies Melted . | . . . Intel | -11 -10 -9 ------- Run | Scr Mat Mat Robot Analysis Total . | . . . Derelict Logs Recovered . | . . . Drone Launches . | . . . Drone Recoveries . | . . . Exploration | -11 -10 -9 ------------- Run | Scr Mat Mat Turns Passed 536 | 66 304 166 Spaces Moved 403 | 45 254 104 Core 28 | 28 . . Treads . | . . . Legs . | . . . Wheels 375 | 17 254 104 Hover . | . . . Flight . | . . . Fastest Speed 50 | 50 90 90 Average Speed 93 | 111 90 92 Slowest Speed 200 | 200 90 100 Overloaded Moves . | . . . Propulsion Burnouts . | . . . Robots Hopped . | . . . Cave-ins Triggered . | . . . Exploration Rate (%) 21 | 3 51 10 Regions Visited 2 Branch Regions . Pre-discovered Areas . | . . . Known Exits Taken . | . . . Unknown Exits Taken 2 | 1 1 . Scrap Searched . | . . . Spaces Dug . | . . . Terrain Destroyed 40 | . 40 . Melee . | . . . Projectile . | . . . AOE 40 | . 40 . Actions | -11 -10 -9 --------- Run | Scr Mat Mat Total 509 | 60 297 152 Wait 31 | . 4 27 Move 401 | 44 253 104 Hop . | . . . Pick Up 23 | 10 10 3 Fast Attach 1 | . 1 . Attach 13 | 6 2 5 Detach . | . . . Swap 3 | . 2 1 Drop 6 | . 5 1 Fire 31 | . 20 11 Melee . | . . . Ram . | . . . Kick . | . . . Crush . | . . . Escape Stasis . | . . . Rewire . | . . . Trap . | . . . Miscellaneous . | . . . Route ------- -11/Scrapyard -10/Materials (discovered 3 exits: [*Mat x2] / [*Min]) -9/Materials History --------- Turn | Location | Event 16 | -11/Scrapyard | Discovered new exit (range 16) 67 | -11/Scrapyard | Entered Materials 203 | -10/Materials | Discovered new exit (range 8) 249 | -10/Materials | Discovered new exit (range 15) 311 | -10/Materials | Build established: Mutant 333 | -10/Materials | Discovered new exit (range 15) 371 | -10/Materials | Entered another Materials area 371 | -9/Materials | Evolved 2 slots: Propulsion x1, Utility x1 537 | -9/Materials | Self-destructed Last Messages --------------- GOAL=ESCAPE 00373_ Dropped Lgt. Ion Engine. 00376_ Acquired Imp. Ion Engine. 00390_ Acquired Heat Sink. 00452_ Y-45 Defender destroyed. 00456_ Acquired 53 matter. 00486_ ALERT: Hostiles spotted, dispatching reinforcements to Terminal M009. 00499_ Acquired Particle Gun. 00505_ K-01 Serf collects debris. 00517_ Med. Laser destroyed. 00520_ Sml. Laser destroyed. 00522_ Com. Wheel destroyed. 00529_ Y-45 Defender heat damages Imp. Ion Engine. 00531_ Y-45 Defender heat damages Heat Sink, Heat Sink. 00532_ Y-45 Defender heat short circuits Beam Rifle. 00534_ Particle Gun destroyed. 00535_ Y-45 Defender heat spikes uncontrollably. 00536_ Y-45 Defender heat damages core (-5). 00536_ EM Pulse Gun destroyed. Map ----- +----------------------------------------------------+ | ?????????????????????????????????????????????????? | | ?????????????????????????????????????????????????? | | ?????????????????????????????????????????????????? | | ?????????????????????????????????????????????????? | | ?????????????????????????????????????????????????? | | ?????????????????????????????????????????????????? | | ?????????????????????????????????????????????????? | | ?????????????????????????????????????????????????? | | ?????????????????????????????????????????????????? | | ?????????????????????????????????????????????????? | | ?????????????????????????????????????????????????? | | ?????????????????????????????????????????????????? | | ?????????????????????????????????????????????????? | | ??????????? ???????????????????????????????????? | | ??????????? ####???####### ????????????????????? | | ??????????# ? ?????????????????????? | | ??????????# * ?????????????????????? | | ??????????? ^** ??????????????????????? | | ????????????# *** Y#??????????????????????? | | ????????????# *** #???????????##########?? | | ????????????# """ #???????????# #?? | | ???????? ## """ ###?????????# """#?? | | ??????? !!! """ #?????????# """#?# | | ??????? !! Y +?????????#! """#?# | | ??????? !! #?????????# #?# | | ??????????????###########@k #?????????# """#?# | | ????????????????????????# #?????????# """#?# | | ????????????????????????# #?????????# """#?# | | ???????????#######?????## ##????????# #?# | | ???????????# ####### #################+### | | ?? ##### | | ???? T | | ????????#### * ! | | ???????????# ####### #################+### | | ???????????#######?????#######??????????# !!! = | | ????????????????????????????????????????# !! " | | ????????????????????????????????????????# !!! " | | ????????????????????????????????????????# " | | ????????????????????????????????????????# | | ????????????????????????????????????????########## | | | | | | | | | | | | | | | | | | | | | +----------------------------------------------------+ Best States ------------- Heat Dissipation 48 Energy Generation 14 Energy Capacity 160 Matter Stores 300 Matter Capacity 300 Sight Range 16 Terrain Scan Range 14 Terrain Scan Density 10 Evasion (%) 42 Item Schematics ----------------- None Robot Schematics ------------------ None Fabricated ------------ Nothing Alien Tech Used ----------------- None Achievements -------------- None Challenges ------------ None Game ------ Seed HugeStructuralNullifier Manual? 0 Play Time 00:11:02 Cumulative 224.1 hours Start 2019.11.08 @ 11:49:31 End 2019.11.09 @ 08:29:44 Sessions 1 Manual Loads 0 Difficulty Rogue Special Mode None Game No. 145 Rogue 143 Adventurer 1 Explorer 0 Win Type - Total 0 Types 0/0/0/0/0/0/0 Lore% 51 Gallery% 63 Achievement% 41 Wizard Run 0 Options --------- ASCII 0 Keyboard 0 Movement Arrows Keybinds 0 Fullscreen 1 Font 16/Cog Map View 76x50 Tactical HUD 1 Map Filters NONE Filters NONE Steam 1 RUN: 84375cac-142d-48f9-b36d-5cd4e8f53566